fUSD/lending_fUSD_20240216
["ID","MTS","AMOUNT","RATE_DAILY","PERIOD"]
[314249703,1708119087075,-779.02,0.00049863,60]
[314249704,1708119087085,-500.0,0.00049863,60]
[314249705,1708119087094,-1002.39,0.00049863,60]
[314249706,1708119087104,-500.0,0.00049863,60]
[314249707,1708119087114,-500.0,0.00049863,60]
[314249708,1708119087123,-1115.22,0.00049863,60]
[314249709,1708119087133,-1272.04,0.00049863,60]
[314249710,1708119087142,-500.0,0.00049863,60]
[314249711,1708119087151,-505.42,0.00049863,60]
[314249712,1708119087160,-3301.31,0.00049863,60]
[314249713,1708119087170,-626.52,0.00049863,60]
[314249714,1708119087180,-500.0,0.00049863,60]
[314249715,1708119087190,-500.0,0.00049863,60]
[314249716,1708119087200,-500.0,0.00049863,60]
[314249717,1708119087210,-500.0,0.00049863,60]
[314249718,1708119087220,-500.0,0.00049863,60]
[314249719,1708119087229,-500.0,0.00049863,60]
[314249720,1708119087239,-500.0,0.00049863,60]
[314249721,1708119087248,-1972.92,0.00049863,60]
[314249722,1708119087258,-914.46,0.00049863,60]
[314249723,1708119087268,-991.91,0.00049863,60]
[314249724,1708119087277,-500.0,0.00049863,60]
[314249725,1708119087287,-500.0,0.00049863,60]
[314249726,1708119087296,-500.0,0.00049863,60]
[314249727,1708119087306,-536.93,0.00049863,60]
[314249728,1708119087315,-500.0,0.00049863,60]
[314249729,1708119087324,-500.0,0.00049863,60]
[314249730,1708119087334,-500.0,0.00049863,60]
[314249731,1708119087344,-500.0,0.00049863,60]
[314249732,1708119087353,-500.0,0.00049863,60]
[314249733,1708119087362,-6496.83,0.00049863,60]
[314249734,1708119087371,-500.0,0.00049863,2]
[314249735,1708119087381,-500.0,0.00049863,60]
[314249736,1708119087390,-560.74489086,0.00049863,60]
[314249737,1708119087399,-1103.19,0.00049863,60]
[314249738,1708119087408,-2895.32791264,0.00049866,26]
[314249739,1708119087417,-3835.78830815,0.00049866,14]
[314249740,1708119087426,-291.57397424,0.00049866,2]
[314249741,1708119087436,-150.0,0.00049867,7]
[314249742,1708119087445,-12163.55070761,0.0004987,120]
[314249743,1708119087455,-150.0,0.00049877,7]
[314249744,1708119087464,-150.0,0.00049878,7]
[314249745,1708119087474,-200.0,0.000499,25]
[314249746,1708119087483,-783.58941826,0.000499,2]
[314249747,1708119087494,-1784.05963177,0.000499,2]
[314249748,1708119087504,-731.98747684,0.000499,2]
[314249749,1708119087515,-12472.81309868,0.000499,2]
[314249750,1708119087526,-1500.0,0.00049901,7]
[314249751,1708119087536,-177.0556127,0.00049902,30]
[314249752,1708119087547,-150.0,0.00049903,7]
[314249753,1708119087557,-150.0,0.0004991,7]
[314249754,1708119087567,-150.0,0.00049922,7]
[314249755,1708119087577,-150.0,0.00049925,7]
[314249756,1708119087586,-150.0,0.00049929,7]
[314249757,1708119087595,-254.52395784,0.00049934,9]
[314249758,1708119087604,-172.94189201,0.00049934,9]
[314249759,1708119087615,-166.99392,0.00049937,4]
[314249760,1708119087625,-150.0,0.00049938,7]
[314249761,1708119087634,-446.86408125,0.00049945,30]
[314249762,1708119087643,-182.46208837,0.00049945,30]
[314249763,1708119087652,-288.21600538,0.00049945,30]
[314249764,1708119087661,-332.83372129,0.00049945,30]
[314249765,1708119087671,-325.64438562,0.00049945,30]
[314249766,1708119087680,-150.0,0.00049961,7]
[314249767,1708119087690,-300.0,0.00049962,7]
[314249768,1708119087699,-150.0,0.00049962,7]
[314249769,1708119087708,-1585.87357355,0.00049963,7]
[314249770,1708119087717,-4894.525259,0.00049966,2]
[314249771,1708119087726,-10775.5641668,0.00049966,2]
[314249772,1708119087736,-186576.6039245,0.00049966,2]
[314249773,1708119087745,-25621.0145677,0.00049966,2]
[314249774,1708119087754,-5024.6312142,0.00049966,2]
[314249775,1708119087764,-135521.0464207,0.00049966,2]
[314249776,1708119087773,-174.3603381,0.00049966,2]
[314249777,1708119087782,-231.25520936,0.00049966,2]
[314249778,1708119087791,-150.0,0.00049974,7]
[314249779,1708119087800,-1500.0,0.00049981,7]
[314249780,1708119087809,-150.01,0.00049985,2]
[314249781,1708119087819,-3316.80182207,0.00049985,2]
[314249782,1708119087828,-150.0,0.00049987,7]
[314249783,1708119087838,-150.0,0.00049996,7]
[314249784,1708119087847,-150.0,0.00049996,7]
[314249785,1708119087856,-515.9010231,0.00049998,60]
[314249786,1708119087865,-51613.75465524,0.00049999,2]
[314249787,1708119087874,-100000.0,0.0005,50]
[314249788,1708119087883,-10000.0,0.0005,30]
[314249789,1708119087893,-3000.0,0.0005,30]
[314249790,1708119087903,-4687.60477392,0.0005,30]
[314249791,1708119087915,-31783.77594551,0.0005,120]
[314249792,1708119087923,-285.84557342,0.0005,2]
[314249793,1708119087932,-395.0614975,0.0005,120]
[314249794,1708119087942,-2554.49838978,0.0005,5]
[314249795,1708119087954,-977.92016109,0.0005,10]
[314249796,1708119087963,-195629.07643159,0.0005,2]
[314249797,1708119087973,-2192.89120239,0.0005,14]
[314249798,1708119087982,-456.89428999,0.0005,2]
[314249799,1708119087992,-4110.28012512,0.0005,30]
[314249800,1708119088001,-148794.94722811,0.0005,60]
[314249801,1708119088010,-307808.92507079,0.0005,2]
[314249802,1708119088020,-3920.96661264,0.0005,2]
[314249803,1708119088029,-452.5655196,0.0005,120]
[314249804,1708119088038,-2124.26592694,0.0005,7]
[314249805,1708119088048,-1114.17855808,0.0005,2]
[314249806,1708119088057,-30571.90505624,0.0005,5]
[314249807,1708119088067,-812.09464035,0.0005,2]
[314249808,1708119088077,-216.84681443,0.0005,2]
[314249809,1708119088086,-19272.60826501,0.0005,2]
[314249810,1708119088096,-9928.37565599,0.0005,30]
[314249811,1708119088105,-5712.92592562,0.0005,7]
[314249812,1708119088115,-472.3739446,0.0005,120]
[314249813,1708119088124,-10210.2966095,0.0005,30]
[314249814,1708119088133,-313970.83485761,0.0005,120]
[314249815,1708119088143,-9174.0,0.0005,30]
[314249816,1708119088152,-10000.0,0.0005,90]
[314249817,1708119088162,-470.175408,0.0005,120]
[314249818,1708119088172,-200000.0,0.0005,30]
[314249819,1708119088181,-4494.78602407,0.0005,30]
[314249820,1708119088191,-3295.93782014,0.0005,30]
[314249821,1708119088199,-538.69531714,0.0005,120]
[314249822,1708119088209,-5000.0,0.0005,30]
[314249823,1708119088218,-6726.0,0.0005,30]
[314249824,1708119088227,-20000.0,0.0005,30]
[314249825,1708119088237,-50000.00171607,0.0005,2]
[314249826,1708119088246,-12339.20050941,0.0005,30]
[314249827,1708119088255,-2000.0,0.0005,60]
[314249828,1708119088265,-1011.51,0.0005,50]
[314249829,1708119088274,-150.0,0.0005,120]
[314249830,1708119088283,-1000.0,0.0005,120]
[314249831,1708119088293,-2500.0,0.0005,120]
[314249832,1708119088302,-959.60518083,0.0005,90]
[314249833,1708119088311,-327.27,0.0005,7]
[314249834,1708119088320,-500.0,0.0005,7]
[314249835,1708119088330,-500.0,0.0005,7]
[314249836,1708119088339,-500.0,0.0005,7]
[314249837,1708119088348,-500.0,0.0005,7]
[314249838,1708119088357,-14230.5924713,0.0005,90]
[314249839,1708119088366,-2658.3693,0.0005,7]
[314249840,1708119088376,-10000.0,0.0005,120]
[314249841,1708119088385,-10000.0,0.0005,120]
[314249842,1708119088397,-150.0,0.0005,27]
[314249843,1708119088406,-290563.3,0.0005,30]
[314249844,1708119088415,-176828.0,0.0005,120]
[314249845,1708119088424,-150.0,0.0005,2]
[314249846,1708119088434,-150.0,0.0005,30]
[314249847,1708119088443,-129137.0,0.0005,13]
[314249848,1708119088452,-26799.2063125,0.0005,30]
[314249849,1708119088462,-200.0,0.0005,27]
[314249850,1708119088471,-200.0,0.0005,27]
[314249851,1708119088480,-5741.937491,0.0005,81]
[314249852,1708119088489,-1989.725645,0.0005,31]
[314249853,1708119088498,-1080.08996213,0.0005,2]
[314249854,1708119088507,-1533.59335103,0.0005,2]
[314249855,1708119088517,-437.7982,0.0005,30]
[314249856,1708119088526,-437.7982,0.0005,30]
[314249857,1708119088535,-3000.0,0.0005,26]
[314249858,1708119088544,-595.0,0.0005,30]
[314249859,1708119088553,-1000.0,0.0005,31]
[314249860,1708119088563,-1000.0,0.0005,35]
[314249861,1708119088572,-1000.0,0.0005,29]
[314249862,1708119088582,-224.913742,0.0005,2]
[314249863,1708119088591,-224.913742,0.0005,2]
[314249864,1708119088602,-224.913742,0.0005,2]
[314249865,1708119088611,-224.913744,0.0005,2]
[314249866,1708119088620,-641.5356,0.0005,30]
[314249867,1708119088630,-641.5356,0.0005,30]
[314249868,1708119088640,-152.72220558,0.00050003,44]
[314249869,1708119088650,-195022.9282006,0.00050136,30]
[314249870,1708119088659,-290.0,0.00050136,30]
[314249871,1708119088669,-500.0,0.00050136,60]
[314249872,1708119088680,-500.0,0.00050136,60]
[314249873,1708119088690,-500.0,0.00050136,60]
[314249874,1708119088700,-500.0,0.00050136,60]
[314249875,1708119088709,-216.25508544,0.00050136,60]
[314249876,1708119088718,-500.0,0.00050136,60]
[314249877,1708119088728,-500.0,0.00050136,60]
[314249878,1708119088737,-500.0,0.00050136,60]
[314249879,1708119088747,-500.0,0.00050136,60]
[314249880,1708119088757,-500.0,0.00050136,60]
[314249881,1708119088766,-500.0,0.00050136,60]
[314249882,1708119088775,-500.0,0.00050136,60]
[314249883,1708119088784,-261.2990017,0.00050136,60]
[314249884,1708119088793,-500.0,0.00050136,60]
[314249885,1708119088802,-500.0,0.00050136,60]
[314249886,1708119088812,-500.0,0.00050136,60]
[314249887,1708119088821,-500.0,0.00050136,60]
[314249888,1708119088830,-500.0,0.00050136,60]
[314249889,1708119088839,-500.0,0.00050136,60]
[314249890,1708119088850,-625.76050996,0.00050136,60]
[314249891,1708119088860,-500.0,0.00050136,60]
[314249892,1708119088872,-500.0,0.00050136,60]
[314249893,1708119088882,-500.0,0.00050136,60]
[314249894,1708119088891,-500.0,0.00050136,60]
[314249895,1708119088901,-500.0,0.00050136,60]
[314249896,1708119088914,-500.0,0.00050136,60]
[314249897,1708119088923,-500.0,0.00050136,60]
[314249898,1708119088932,-500.0,0.00050136,60]
[314249899,1708119088942,-500.0,0.00050136,60]
[314249900,1708119088951,-500.0,0.00050136,60]
[314249901,1708119088960,-500.0,0.00050136,60]
[314249902,1708119088970,-500.0,0.00050136,60]
[314249903,1708119088980,-603.77638268,0.00050136,60]
[314249904,1708119088989,-500.0,0.00050136,60]
[314249905,1708119088999,-500.0,0.00050136,60]
[314249906,1708119089008,-500.0,0.00050136,60]
[314249907,1708119089017,-500.0,0.00050136,60]
[314249908,1708119089027,-500.0,0.00050136,60]
[314249909,1708119089036,-500.0,0.00050136,60]
[314249910,1708119089046,-500.0,0.00050136,60]
[314249911,1708119089056,-500.0,0.00050136,60]
[314249912,1708119089065,-500.0,0.00050136,60]
[314249913,1708119089074,-500.0,0.00050136,60]
[314249914,1708119089084,-500.0,0.00050136,60]
[314249915,1708119089093,-500.0,0.00050136,60]
[314249916,1708119089102,-500.0,0.00050136,60]
[314249917,1708119089112,-500.0,0.00050136,60]
[314249918,1708119089121,-500.0,0.00050136,60]
[314249919,1708119089131,-500.0,0.00050136,60]
[314249920,1708119089140,-500.0,0.00050136,60]
[314249921,1708119089149,-500.0,0.00050136,60]
[314249922,1708119089158,-500.0,0.00050136,60]
[314249923,1708119089168,-500.0,0.00050136,60]
[314249924,1708119089177,-458.29476985,0.00050136,60]
[314249925,1708119089186,-500.0,0.00050136,60]
[314249926,1708119089197,-500.0,0.00050136,60]
[314249927,1708119089207,-500.0,0.00050136,60]
[314249928,1708119089217,-500.0,0.00050136,60]
[314249929,1708119089226,-500.0,0.00050136,60]
[314249930,1708119089236,-500.0,0.00050136,60]
[314249931,1708119089245,-500.0,0.00050136,60]
[314249932,1708119089255,-500.0,0.00050136,60]
[314249933,1708119089264,-500.0,0.00050136,60]
[314249934,1708119089273,-500.0,0.00050136,60]
[314249935,1708119089283,-500.0,0.00050136,60]
[314249936,1708119089292,-242.33021293,0.00050136,60]
[314249937,1708119089302,-500.0,0.00050136,60]
[314249938,1708119089312,-664.54,0.00050136,30]
[314249939,1708119089321,-500.0,0.00050136,60]
[314249940,1708119089330,-500.0,0.00050136,60]
[314249941,1708119089339,-500.0,0.00050136,60]
[314249942,1708119089349,-500.0,0.00050136,60]
[314249943,1708119089358,-500.0,0.00050136,60]
[314249944,1708119089367,-500.0,0.00050136,60]
[314249945,1708119089376,-500.0,0.00050136,60]
[314249946,1708119089386,-568.05,0.00050136,2]
[314249947,1708119089395,-500.0,0.00050136,60]
[314249948,1708119089405,-518.83592799,0.00050136,60]
[314249949,1708119089414,-544.16340885,0.00050136,60]
[314249950,1708119089423,-500.0,0.00050136,60]
[314249951,1708119089434,-500.0,0.00050136,60]
[314249952,1708119089443,-500.0,0.00050136,60]
[314249953,1708119089452,-500.0,0.00050136,60]
[314249954,1708119089461,-500.0,0.00050136,60]
[314249955,1708119089470,-500.0,0.00050136,60]
[314249956,1708119089479,-500.0,0.00050136,60]
[314249957,1708119089488,-500.0,0.00050136,60]
[314249958,1708119089498,-646.5586951,0.00050136,60]
[314249959,1708119089507,-500.0,0.00050136,60]
[314249960,1708119089517,-500.0,0.00050136,60]
[314249961,1708119089527,-500.0,0.00050136,60]
[314249962,1708119089536,-500.0,0.00050136,60]
[314249963,1708119089545,-500.0,0.00050136,60]
[314249964,1708119089555,-500.0,0.00050136,60]
[314249965,1708119089564,-500.0,0.00050136,60]
[314249966,1708119089574,-500.0,0.00050136,60]
[314249967,1708119089583,-391.98263183,0.00050136,60]
[314249968,1708119089593,-500.0,0.00050136,60]
[314249969,1708119089603,-500.0,0.00050136,60]
[314249970,1708119089612,-500.0,0.00050136,60]
[314249971,1708119089621,-500.0,0.00050136,60]
[314249972,1708119089631,-500.0,0.00050136,60]
[314249973,1708119089641,-387.49603706,0.00050136,60]
[314249974,1708119089650,-500.0,0.00050136,60]
[314249975,1708119089659,-500.0,0.00050136,60]
[314249976,1708119089668,-500.0,0.00050136,60]
[314249977,1708119089678,-500.0,0.00050136,60]
[314249978,1708119089687,-500.0,0.00050136,60]
[314249979,1708119089698,-313.62808426,0.00050136,60]
[314249980,1708119089708,-500.0,0.00050136,60]
[314249981,1708119089717,-500.0,0.00050136,60]
[314249982,1708119089728,-500.0,0.00050136,60]
[314249983,1708119089738,-500.0,0.00050136,60]
[314249984,1708119089747,-500.0,0.00050136,60]
[314249985,1708119089756,-500.0,0.00050136,60]
[314249986,1708119089765,-500.0,0.00050136,7]
[314249987,1708119089774,-500.0,0.00050136,60]
[314249988,1708119089784,-500.0,0.00050136,60]
[314249989,1708119089793,-500.0,0.00050136,60]
[314249990,1708119089802,-500.0,0.00050136,60]
[314249991,1708119089811,-500.0,0.00050136,60]
[314249992,1708119089821,-500.0,0.00050136,60]
[314249993,1708119089832,-500.0,0.00050136,60]
[314249994,1708119089842,-631.37,0.00050136,60]
[314249995,1708119089852,-500.0,0.00050136,60]
[314249996,1708119089862,-500.0,0.00050136,60]
[314249997,1708119089873,-500.0,0.00050136,60]
[314249998,1708119089884,-500.0,0.00050136,60]
[314249999,1708119089895,-500.0,0.00050136,60]
[314250000,1708119089908,-500.0,0.00050136,60]
[314250001,1708119089925,-500.0,0.00050136,60]
[314250002,1708119089939,-584.75136921,0.00050136,60]
[314250003,1708119089951,-529.35702275,0.00050136,60]
[314250004,1708119089961,-500.0,0.00050136,60]
[314250005,1708119089970,-500.0,0.00050136,60]
[314250006,1708119089980,-500.0,0.00050136,60]
[314250007,1708119089993,-500.0,0.00050136,60]
[314250008,1708119090003,-500.0,0.00050136,60]
[314250009,1708119090013,-500.0,0.00050136,60]
[314250010,1708119090024,-190.53025645,0.00050136,60]
[314250011,1708119090034,-500.0,0.00050136,60]
[314250012,1708119090045,-500.0,0.00050136,60]
[314250013,1708119090055,-500.0,0.00050136,60]
[314250014,1708119090289,-500.0,0.00050136,60]
[314250015,1708119090304,-500.0,0.00050136,60]
[314250016,1708119090314,-500.0,0.00050136,60]
[314250017,1708119090323,-500.0,0.00050136,60]
[314250018,1708119090332,-500.0,0.00050136,60]
[314250019,1708119090341,-182.10204039,0.00050136,60]
[314250020,1708119090351,-476.75776666,0.00050136,60]
[314250021,1708119090360,-500.0,0.00050136,60]
[314250022,1708119090370,-500.0,0.00050136,60]
[314250023,1708119090379,-500.0,0.00050136,60]
[314250024,1708119090389,-500.0,0.00050136,60]
[314250025,1708119090398,-500.0,0.00050136,60]
[314250026,1708119090407,-500.0,0.00050136,60]
[314250027,1708119090416,-549.14,0.00050136,60]
[314250028,1708119090426,-500.0,0.00050136,60]
[314250029,1708119090435,-500.0,0.00050136,60]
[314250030,1708119090446,-500.0,0.00050136,60]
[314250031,1708119090455,-500.0,0.00050136,60]
[314250032,1708119090464,-500.0,0.00050136,60]
[314250033,1708119090474,-500.0,0.00050136,60]
[314250034,1708119090483,-500.0,0.00050136,60]
[314250035,1708119090492,-522.94842485,0.00050136,60]
[314250036,1708119090501,-500.0,0.00050136,60]
[314250037,1708119090511,-500.0,0.00050136,60]
[314250038,1708119090520,-500.0,0.00050136,60]
[314250039,1708119090530,-500.0,0.00050136,60]
[314250040,1708119090539,-500.0,0.00050136,60]
[314250041,1708119090548,-500.0,0.00050136,60]
[314250042,1708119090560,-500.0,0.00050136,60]
[314250043,1708119090571,-953.91,0.00050136,60]
[314250044,1708119090581,-500.0,0.00050136,60]
[314250045,1708119090590,-713.03,0.00050136,60]
[314250046,1708119090599,-500.0,0.00050136,60]
[314250047,1708119090609,-639.89,0.00050136,60]
[314250048,1708119090619,-518.8603674,0.00050136,60]
[314250049,1708119090628,-500.0,0.00050136,60]
[314250050,1708119090639,-202.36208741,0.00050136,60]
[314250051,1708119090649,-500.0,0.00050136,60]
[314250052,1708119090658,-510.16,0.00050136,60]
[314250053,1708119090668,-500.0,0.00050136,60]
[314250054,1708119090678,-500.0,0.00050136,2]
[314250055,1708119090688,-500.0,0.00050136,60]
[314250056,1708119090699,-500.0,0.00050136,60]
[314250057,1708119090709,-580.88,0.00050136,60]
[314250058,1708119090718,-500.0,0.00050136,60]
[314250059,1708119090727,-539.20575747,0.00050136,60]
[314250060,1708119090737,-500.0,0.00050136,60]
[314250061,1708119090746,-500.0,0.00050136,60]
[314250062,1708119090756,-500.0,0.00050136,60]
[314250063,1708119090765,-500.0,0.00050136,60]
[314250064,1708119090774,-500.0,0.00050136,60]
[314250065,1708119090784,-435.36676498,0.00050136,60]
[314250066,1708119090794,-555.94,0.00050136,60]
[314250067,1708119090803,-500.0,0.00050136,60]
[314250068,1708119090813,-572.13,0.00050136,60]
[314250069,1708119090822,-570.46,0.00050136,60]
[314250070,1708119090832,-500.0,0.00050136,60]
[314250071,1708119090841,-551.75,0.00050136,60]
[314250072,1708119090851,-500.0,0.00050136,60]
[314250073,1708119090860,-639.19343745,0.00050136,60]
[314250074,1708119090870,-500.0,0.00050136,60]
[314250075,1708119090879,-500.0,0.00050136,60]
[314250076,1708119090889,-523.22770642,0.00050136,60]
[314250077,1708119090898,-500.0,0.00050136,60]
[314250078,1708119090909,-500.0,0.00050136,60]
[314250079,1708119090922,-500.0,0.00050136,60]
[314250080,1708119090932,-616.49,0.00050136,60]
[314250081,1708119090942,-500.0,0.00050136,60]
[314250082,1708119090951,-504.49068439,0.00050136,60]
[314250083,1708119090961,-500.0,0.00050136,60]
[314250084,1708119090971,-500.0,0.00050136,60]
[314250085,1708119090980,-500.0,0.00050136,60]
[314250086,1708119090990,-569.39,0.00050136,60]
[314250087,1708119091000,-500.0,0.00050136,60]
[314250088,1708119091010,-500.0,0.00050136,60]
[314250089,1708119091019,-500.0,0.00050136,60]
[314250090,1708119091028,-500.0,0.00050136,60]
[314250091,1708119091037,-614.71,0.00050136,60]
[314250092,1708119091047,-500.0,0.00050136,60]
[314250093,1708119091057,-500.0,0.00050136,60]
[314250094,1708119091066,-500.0,0.00050136,60]
[314250095,1708119091075,-500.0,0.00050136,60]
[314250096,1708119091085,-2236.49,0.00050136,60]
[314250097,1708119091095,-500.0,0.00050136,60]
[314250098,1708119091104,-869.27,0.00050136,60]
[314250099,1708119091113,-679.72,0.00050136,60]
[314250100,1708119091122,-500.0,0.00050136,60]
[314250101,1708119091131,-500.0,0.00050136,60]
[314250102,1708119091142,-500.0,0.00050136,60]
[314250103,1708119091151,-500.0,0.00050136,60]
[314250104,1708119091161,-514.97,0.00050136,60]
[314250105,1708119091170,-745.29,0.00050136,60]
[314250106,1708119091180,-500.0,0.00050136,60]
[314250107,1708119091189,-500.0,0.00050136,60]
[314250108,1708119091199,-597.04,0.00050136,60]
[314250109,1708119091209,-500.0,0.00050136,60]
[314250110,1708119091219,-500.0,0.00050136,60]
[314250111,1708119091228,-647.43,0.00050136,60]
[314250112,1708119091238,-541.75,0.00050136,60]
[314250113,1708119091248,-500.0,0.00050136,60]
[314250114,1708119091258,-500.0,0.00050136,60]
[314250115,1708119091269,-500.0,0.00050136,60]
[314250116,1708119091277,-500.0,0.00050136,60]
[314250117,1708119091286,-197.33298951,0.00050136,60]
[314250118,1708119091296,-1088.61,0.00050136,2]
[314250119,1708119091305,-500.0,0.00050136,60]
[314250120,1708119091314,-500.0,0.00050136,60]
[314250121,1708119091324,-500.0,0.00050136,60]
[314250122,1708119091333,-500.0,0.00050136,60]
[314250123,1708119091343,-500.0,0.00050136,60]
[314250124,1708119091353,-500.0,0.00050136,60]
[314250125,1708119091362,-500.0,0.00050136,60]
[314250126,1708119091372,-600.81586322,0.00050136,60]
[314250127,1708119091381,-568.01,0.00050136,60]
[314250128,1708119091391,-500.0,0.00050136,60]
[314250129,1708119091400,-500.0,0.00050136,60]
[314250130,1708119091410,-500.0,0.00050136,60]
[314250131,1708119091419,-581.86,0.00050136,60]
[314250132,1708119091428,-500.0,0.00050136,60]
[314250133,1708119091437,-500.0,0.00050136,60]
[314250134,1708119091447,-500.0,0.00050136,60]
[314250135,1708119091457,-792.04,0.00050136,60]
[314250136,1708119091466,-500.0,0.00050136,60]
[314250137,1708119091475,-500.0,0.00050136,60]
[314250138,1708119091485,-500.0,0.00050136,60]
[314250139,1708119091494,-500.0,0.00050136,60]
[314250140,1708119091505,-500.0,0.00050136,60]
[314250141,1708119091514,-500.0,0.00050136,60]
[314250142,1708119091523,-500.0,0.00050136,60]
[314250143,1708119091534,-516.97285295,0.00050136,60]
[314250144,1708119091545,-500.0,0.00050136,60]
[314250145,1708119091554,-500.0,0.00050136,7]
[314250146,1708119091564,-574.86,0.00050136,60]
[314250147,1708119091573,-500.0,0.00050136,60]
[314250148,1708119091582,-500.0,0.00050136,60]
[314250149,1708119091591,-500.0,0.00050136,60]
[314250150,1708119091601,-500.0,0.00050136,60]
[314250151,1708119091611,-500.0,0.00050136,60]
[314250152,1708119091620,-500.0,0.00050136,60]
[314250153,1708119091629,-724.01,0.00050136,60]
[314250154,1708119091639,-500.0,0.00050136,30]
[314250155,1708119091648,-500.0,0.00050136,60]
[314250156,1708119091657,-500.0,0.00050136,60]
[314250157,1708119091667,-500.0,0.00050136,60]
[314250158,1708119091676,-500.0,0.00050136,60]
[314250159,1708119091686,-500.0,0.00050136,60]
[314250160,1708119091696,-500.0,0.00050136,60]
[314250161,1708119091705,-500.0,0.00050136,60]
[314250162,1708119091714,-574.15,0.00050136,60]
[314250163,1708119091723,-500.0,0.00050136,60]
[314250164,1708119091733,-500.0,0.00050136,60]
[314250165,1708119091742,-1173.51,0.00050136,7]
[314250166,1708119091751,-500.0,0.00050136,60]
[314250167,1708119091760,-604.06,0.00050136,60]
[314250168,1708119091769,-617.63,0.00050136,60]
[314250169,1708119091779,-500.0,0.00050136,60]
[314250170,1708119091788,-500.0,0.00050136,60]
[314250171,1708119091797,-500.0,0.00050136,60]
[314250172,1708119091806,-500.0,0.00050136,60]
[314250173,1708119091815,-500.0,0.00050136,60]
[314250174,1708119091825,-500.0,0.00050136,60]
[314250175,1708119091834,-500.0,0.00050136,60]
[314250176,1708119091843,-500.0,0.00050136,60]
[314250177,1708119091852,-500.0,0.00050136,60]
[314250178,1708119091862,-500.0,0.00050136,60]
[314250179,1708119091871,-500.0,0.00050136,60]
[314250180,1708119091881,-840.32,0.00050136,2]
[314250181,1708119091890,-500.0,0.00050136,60]
[314250182,1708119091899,-511.02,0.00050136,60]
[314250183,1708119091912,-500.0,0.00050136,60]
[314250184,1708119091922,-551.0,0.00050136,60]
[314250185,1708119091931,-500.0,0.00050136,60]
[314250186,1708119091940,-500.0,0.00050136,60]
[314250187,1708119091951,-500.0,0.00050136,60]
[314250188,1708119091960,-2031.12,0.00050136,2]
[314250189,1708119091969,-500.0,0.00050136,60]
[314250190,1708119091978,-500.0,0.00050136,60]
[314250191,1708119091988,-608.56,0.00050136,60]
[314250192,1708119091999,-500.0,0.00050136,60]
[314250193,1708119092008,-500.0,0.00050136,60]
[314250194,1708119092018,-500.0,0.00050136,60]
[314250195,1708119092027,-542.29,0.00050136,60]
[314250196,1708119092036,-500.0,0.00050136,60]
[314250197,1708119092046,-500.0,0.00050136,60]
[314250198,1708119092055,-500.0,0.00050136,60]
[314250199,1708119092065,-500.0,0.00050136,60]
[314250200,1708119092074,-500.0,0.00050136,60]
[314250201,1708119092083,-500.0,0.00050136,60]
[314250202,1708119092093,-500.0,0.00050136,60]